Cogmind - Beta 10 @@@ ROGUE MODE // 2020.09.15 @ 22:31:28 Player: Weasel455 Result: Self-destructed Performance ------------- Evolutions (3) 1500 Regions Visited (7) 1400 Robots Destroyed (32) 160 Value Destroyed (1190) 1190 Prototype IDs (1) 20 Alien Tech Used (0) 0 Bonus (609) 609 TOTAL SCORE: 4879 Bonus ------- Pacifist 270 High Alert Combat Kills 39 Aligned with FarCom 300 Cogmind --------- Core Integrity 547/700 Matter 13/300 Energy 275/275 System Corruption 0% Temperature Cool (199) Movement Walking (157) Ox1 Location -7/Storage Parts ------- > --- POWER (1) -------- Deuterium Engine > --- PROPULSION (4) --- Carbon-fiber Leg Improved Titanium Leg Improved Titanium Leg Improved Titanium Leg > --- UTILITY (5) ------ Advanced Heat Sink Humpback Targeting Computer Medium Reactive Plating > --- WEAPON (3) ------- Gauss Rifle Assault Cannon > --- INVENTORY (24) --- Nuclear Core Light Nuclear Core Light Nuclear Core Improved Deuterium Engine Light Treads Aluminum Leg Carbon-fiber Leg Humpback Visual Processing Unit Weapon Cycler Weapon Cycler Transmission Jammer Cloak of Protection Weapon Shielding Faulty Precision Beam Rifle Plasma Cannon Firepult Heavy Assault Rifle Gauss Rifle Grenade Launcher Mining Laser Peak State ------------ > --- POWER ------------ Deuterium Engine > --- PROPULSION ------- Carbon-fiber Leg Improved Titanium Leg Improved Titanium Leg Improved Titanium Leg > --- UTILITY ---------- Humpback Targeting Computer Cloak of Protection Medium Reactive Plating > --- WEAPON ----------- Flak Gun Assault Cannon Gauss Cannon > --- INVENTORY -------- Nuclear Core Light Nuclear Core Light Nuclear Core Improved Deuterium Engine Light Treads Aluminum Leg Advanced Heat Sink Humpback Visual Processing Unit Weapon Cycler Weapon Cycler Transmission Jammer Weapon Shielding Precision Beam Rifle Plasma Cannon Firepult Heavy Assault Rifle Gauss Rifle Gauss Rifle Grenade Launcher Mining Laser [Rating: 51] Favorites ----------- Power Ion Engine Engine Ion Engine Power Core Nuclear Core Propulsion Aluminum Leg Treads Light Treads Leg Aluminum Leg Wheel Armored Huge Wheel Utility Humpback Device Improved Sensor Array Storage Humpback Processor Targeting Computer Protection Hardened Medium Armor Plating Weapon Shotgun Energy Gun Beam Rifle Energy Cannon EM Pulse Cannon Ballistic Gun Shotgun Ballistic Cannon Gauss Cannon Launcher Grenade Launcher Build | -11 -10 -10 -10 -9 -8 -7 -7 ------- Run | Scr Mat Min Exi Min Mat Fac Sto Slots Evolved 6 | . . . . . 4 2 . Power . | . . . . . . . . Propulsion 2 | . . . . . 1 1 . Utility 3 | . . . . . 2 1 . Weapon 1 | . . . . . 1 . . Parts Attached 50 | 6 3 1 1 . 12 13 14 Power 5 | 1 . . . . 1 3 . Engine 3 | 1 . . . . . 2 . Core 2 | . . . . . 1 1 . Reactor . | . . . . . . . . Propulsion 12 | 2 . . . . 3 5 2 Treads 1 | . . . . . 1 . . Leg 8 | 2 . . . . . 4 2 Wheel 3 | . . . . . 2 1 . Hover . | . . . . . . . . Flight . | . . . . . . . . Utility 18 | 1 1 1 1 . 4 3 7 Device 10 | . . . . . 2 2 6 Storage 3 | 1 . 1 1 . . . . Processor 1 | . . . . . . 1 . Hackware . | . . . . . . . . Protection 4 | . 1 . . . 2 . 1 Artifact . | . . . . . . . . Weapon 15 | 2 2 . . . 4 2 5 Energy Gun 1 | . . . . . . 1 . Energy Cannon 1 | . . . . . 1 . . Ballistic Gun 10 | 2 2 . . . 3 1 2 Ballistic Cannon 2 | . . . . . . . 2 Launcher 1 | . . . . . . . 1 Special Weapon . | . . . . . . . . Impact Weapon . | . . . . . . . . Slashing Weapon . | . . . . . . . . Piercing Weapon . | . . . . . . . . Special Melee Weapon . | . . . . . . . . Unidentified Prototypes 1 | . . . . . 1 . . Parts Lost 7 | . . . . . . . 7 Power . | . . . . . . . . Propulsion 2 | . . . . . . . 2 Utility 1 | . . . . . . . 1 Weapon 4 | . . . . . . . 4 Highest Loss Streak 5 | . . . . . . . 5 Average Slot Usage (%) 87 | . 92 100 86 85 86 84 91 Engine 8 | . 14 14 14 14 2 . 7 Core 2 | . . . . . 6 6 . Leg 23 | . 28 28 28 28 12 16 29 Wheel 2 | . . . . . 7 6 . Device 3 | . . . . . 9 7 7 Storage 11 | . 14 14 14 14 9 7 7 Processor 1 | . . . . . . 6 7 Protection 4 | . 9 14 1 . 8 7 7 Ballistic Gun 23 | . 25 28 28 28 25 19 7 Ballistic Cannon 1 | . . . . . . . 10 Naked Turns . | . . . . . . . . Heaviest Build 133 | 13 16 20 91 91 105 113 133 Greatest Support 75 | 20 20 20 20 20 28 70 75 Greatest Overweight (x) 5 | 1 . . 4 4 5 5 2 Average Overweight (x) 2 | . . . 3 4 3 2 1 Largest Inventory Capacity 24 | 6 6 8 24 24 24 24 24 Average Capacity 22 | 5 6 7 22 24 24 24 24 Most Carried 24 | 1 6 8 15 18 24 24 24 Average Carried 16 | . 3 7 11 16 21 23 23 Final Capacity 24 | 6 6 8 24 24 24 24 24 Final Carried 24 | 1 6 8 15 18 24 24 23 Class Distribution -------------------- 44% | Hauler-Mutant 23% | Hauler-Gunner 19% | Hauler-Skirmisher 10% | Mutant Dominant Class ---------------- Mutant | -10/Materials Mutant | -10/Mines Hauler-Mutant | -10/Exiles Hauler-Mutant | -9/Mines Hauler-Skirmisher | -8/Materials Hauler-Gunner | -7/Factory Hauler-Gunner | -7/Storage Resources | -11 -10 -10 -10 -9 -8 -7 -7 ----------- Run | Scr Mat Min Exi Min Mat Fac Sto Matter Collected 1221 | 202 . . 108 28 123 411 349 Remotely . | . . . . . . . . Salvage Created 1113 | . . . . . 150 417 546 Parts 56 | . . . . . 16 8 32 Haulers Intercepted . | . . . . . . . . Recyclers Shooed 2 | . . . . . . 1 1 Parts Field Recycled . | . . . . . . . . Retrieved Matter . | . . . . . . . . Parts Self-Destructed . | . . . . . . . . Prevented . | . . . . . . . . Kills | -11 -10 -10 -10 -9 -8 -7 -7 ------- Run | Scr Mat Min Exi Min Mat Fac Sto Combat Hostiles Destroyed 27 | . . . . . 6 8 13 Guns 18 | . . . . . 4 8 6 Cannons 4 | . . . . . . . 4 AOE 5 | . . . . . 2 . 3 Classes Destroyed 8 | . . . . . 2 2 4 Worker 2 | . . . . . . . 2 Builder 1 | . . . . . . . 1 Recycler 1 | . . . . . . 1 . Mechanic 1 | . . . . . . . 1 Swarmer 6 | . . . . . 4 . 2 Grunt 12 | . . . . . . 7 5 Sentry 7 | . . . . . 2 1 4 Hunter 2 | . . . . . . . 2 Best Kill Streak 8 | . . . . . 4 3 8 Combat Bots Only 6 | . . . . . 4 3 6 Max Kills in Single Turn 2 | . . . . . 2 1 2 Gunslinging . | . . . . . . . . Exploded 2 | . . . . . 2 . 1 Melee . | . . . . . . . . Uniques/NPCs Destroyed . | . . . . . . . . Combat | -11 -10 -10 -10 -9 -8 -7 -7 -------- Run | Scr Mat Min Exi Min Mat Fac Sto Damage Taken 2566 | . . . . . 286 633 1647 Core 163 | . . . . . 10 38 115 Absorbed by Shields . | . . . . . . . . Core Remaining (%) 99 | 100 . . . 100 98 . . Volleys Fired 68 | . . . . . 9 22 37 Largest 3 | . . . . . 3 3 3 Hottest 132 | . . . . . 83 109 132 Shots Fired 191 | . . . . . 23 64 104 Gun 130 | . . . . . 19 64 47 Cannon 58 | . . . . . 4 . 54 Launcher 3 | . . . . . . . 3 Special . | . . . . . . . . Kinetic 168 | . . . . . 19 56 93 Thermal 16 | . . . . . . 8 8 Explosive 3 | . . . . . . . 3 Electromagnetic 4 | . . . . . 4 . . Robot Hit Streak 11 | . . . . . 4 9 11 Robot Miss Streak 11 | . . . . . 2 4 11 Penetration Max . | . . . . . . . . Secondary Targets . | . . . . . . . . Shots Hit Robots 146 | . . . . . 15 55 76 Core Hits 96 | . . . . . 9 31 56 Critical Hits 1 | . . . . . . 1 . Critical Kills . | . . . . . . . . Critical Parts Destroyed 1 | . . . . . . 1 . Melee Attacks . | . . . . . . . . Impact . | . . . . . . . . Slashing . | . . . . . . . . Piercing . | . . . . . . . . Sneak Attacks . | . . . . . . . . Combat Hostiles . | . . . . . . . . Follow-up Attacks . | . . . . . . . . Damage Inflicted 2574 | . . . . . 253 779 1542 Guns 1548 | . . . . . 163 766 619 Cannons 581 | . . . . . 22 . 559 Explosions 398 | . . . . . 68 . 330 Melee . | . . . . . . . . Ramming 47 | . . . . . . 13 34 Kinetic 1948 | . . . . . 163 680 1105 Thermal 227 | . . . . . 68 86 73 Explosive 330 | . . . . . . . 330 Electromagnetic 22 | . . . . . 22 . . Impact . | . . . . . . . . Slashing . | . . . . . . . . Piercing . | . . . . . . . . Highest Corruption . | . . . . . . . . Average Corruption . | . . . . . . . . Corruption Purged . | . . . . . . . . Overload Shots . | . . . . . . . . Overflow Damage 51 | . . . . . . . 51 Projectiles 3 | . . . . . . . 3 Explosions 48 | . . . . . . . 48 Melee . | . . . . . . . . Knockbacks 4 | . . . . . . . 4 Impact 1 | . . . . . . . 1 Kinetic 3 | . . . . . . . 3 Secondary . | . . . . . . . . Self-Inflicted Damage 191 | . . . . . 35 . 156 Shots 4 | . . . . . 1 . 3 Rammed 1 | . . . . . . . 1 Targets Rammed 2 | . . . . . . 1 1 Kicked 1 | . . . . . . 1 . Crushed . | . . . . . . . . Highest Temperature 227 | . . . . . 56 218 227 Average Temperature 57 | . . . . . 26 68 59 Received Heat Transfer 765 | . . . . . 45 270 450 Siege Activations . | . . . . . . . . Robots Corrupted . | . . . . . . . . Combat Hostiles . | . . . . . . . . Parts Fried . | . . . . . . . . Impact Corruptions . | . . . . . . . . Robots Melted . | . . . . . . . . Combat Hostiles . | . . . . . . . . Parts Melted . | . . . . . . . . Heat Transferred 457 | . . . . . 50 222 185 Parts Sabotaged . | . . . . . . . . Parts Stolen . | . . . . . . . . Parts Stripped . | . . . . . . . . Power Chain Reactions 1 | . . . . . 1 . . Missiles Intercepted . | . . . . . . . . Alert | -11 -10 -10 -10 -9 -8 -7 -7 ------- Run | Scr Mat Min Exi Min Mat Fac Sto Peak Influence 466 | . 15 5 . . 106 202 466 Initial 46 | . . 5 . . . 46 32 Average 81 | . 14 5 . . 46 86 199 Maximum Alert Level 2 | . . . . . . 1 2 Low Security (%) 92 | 100 100 100 . 100 100 97 65 Level 1 5 | . . . . . . 2 24 Level 2 2 | . . . . . . . 10 Level 3 . | . . . . . . . . Level 4 . | . . . . . . . . Level 5 . | . . . . . . . . High Security . | . . . . . . . . Max Security . | . . . . . . . . Squads Dispatched 9 | . 1 . . . 1 1 6 Investigation 3 | . . . . . . 1 2 Extermination . | . . . . . . . . Reinforcement 4 | . 1 . . . 1 . 2 Assault . | . . . . . . . . Garrison 2 | . . . . . . . 2 Intercept . | . . . . . . . . Construction Impeded 1 | . . . . . . . 1 Haulers Reinforced . | . . . . . . . . Stealth | -11 -10 -10 -10 -9 -8 -7 -7 --------- Run | Scr Mat Min Exi Min Mat Fac Sto Distress Signals 3 | . . . . . 1 . 2 Communications Jammed . | . . . . . . . . Distress Signals . | . . . . . . . . Times Spotted 49 | . 1 . . . 14 14 20 Peak Tracking Total 5 | . . . . . 4 4 5 Tactical Retreats 3 | . . . . . . 3 . Traps | -11 -10 -10 -10 -9 -8 -7 -7 ------- Run | Scr Mat Min Exi Min Mat Fac Sto Traps Triggered 3 | . . . . . . 1 2 Indirectly . | . . . . . . . . Trap Hack Attempts . | . . . . . . . . Triggered . | . . . . . . . . Disarmed . | . . . . . . . . Reprogrammed . | . . . . . . . . Reused . | . . . . . . . . Traps Extracted . | . . . . . . . . Installed . | . . . . . . . . Triggered . | . . . . . . . . Machines | -11 -10 -10 -10 -9 -8 -7 -7 ---------- Run | Scr Mat Min Exi Min Mat Fac Sto Machines Disabled 3 | . . . . . . . 3 Max in Single Turn 2 | . . . . . . . 2 Machines Sabotaged . | . . . . . . . . Garrisons Compromised . | . . . . . . . . Overloaded Fab Kills . | . . . . . . . . Fab Network Shutdowns . | . . . . . . . . Hacking | -11 -10 -10 -10 -9 -8 -7 -7 --------- Run | Scr Mat Min Exi Min Mat Fac Sto Machines Accessed 9 | . . . 4 . 3 1 1 Terminals 4 | . . . . . 3 . 1 Fabricators . | . . . . . . . . Repair Stations . | . . . . . . . . Recycling Units 1 | . . . . . . 1 . Scanalyzers . | . . . . . . . . Garrison Access . | . . . . . . . . Total Hacks 57 | . . . 49 . 3 3 2 Successful 56 | . . . 49 . 3 3 1 Failed 1 | . . . . . . . 1 Catastrophic . | . . . . . . . . Database Lockouts . | . . . . . . . . Manual 2 | . . . 2 . . . . Terminals 5 | . . . . . 3 . 2 Fabricators . | . . . . . . . . Repair Stations . | . . . . . . . . Recycling Units 3 | . . . . . . 3 . Scanalyzers . | . . . . . . . . Garrison Access . | . . . . . . . . Terminal Hacks 53 | . . . 49 . 3 . 1 Record 49 | . . . 49 . . . . Branch Access Points 1 | . . . . . 1 . . Dispatch Records 1 | . . . . . . . 1 Zone Layout 2 | . . . . . 2 . . Fabricator Hacks . | . . . . . . . . Repair Station Hacks . | . . . . . . . . Recycling Unit Hacks 3 | . . . . . . 3 . Recycle Component 1 | . . . . . . 1 . Process 2 | . . . . . . 2 . Scanalyzer . | . . . . . . . . Garrison Access Hacks . | . . . . . . . . Unauthorized Hacks . | . . . . . . . . Terminals . | . . . . . . . . Fabricators . | . . . . . . . . Repair Stations . | . . . . . . . . Recycling Units . | . . . . . . . . Scanalyzers . | . . . . . . . . Garrison Access . | . . . . . . . . Data Cores Recovered . | . . . . . . . . Used . | . . . . . . . . Hacking Detections 3 | . . . . . 1 1 1 Full Trace Events 1 | . . . . . . 1 . Feedback Events . | . . . . . . . . Feedback Blocked . | . . . . . . . . Robot Schematics Acquired . | . . . . . . . . Robots Built . | . . . . . . . . Matter . | . . . . . . . . Time . | . . . . . . . . Total Robot Build Rating . | . . . . . . . . Part Schematics Acquired . | . . . . . . . . Parts Built . | . . . . . . . . Matter . | . . . . . . . . Time . | . . . . . . . . Total Part Build Rating . | . . . . . . . . Parts Repaired . | . . . . . . . . Time . | . . . . . . . . Parts Recycled 1 | . . . . . . 1 . Recycled Matter 79 | . . . . . . 79 . Retrieved Matter . | . . . . . . . . Retrieved Components . | . . . . . . . . Parts Scanalyzed . | . . . . . . . . Part Schematics Acquired . | . . . . . . . . Parts Damaged . | . . . . . . . . Bothacking | -11 -10 -10 -10 -9 -8 -7 -7 ------------ Run | Scr Mat Min Exi Min Mat Fac Sto Used RIF Installer . | . . . . . . . . Robots Hacked . | . . . . . . . . Non-combat . | . . . . . . . . Combat . | . . . . . . . . Robot Hacks Applied . | . . . . . . . . Relay Couplers Released . | . . . . . . . . Robots Rewired . | . . . . . . . . Allies Hacked . | . . . . . . . . Hacks Repelled . | . . . . . . . . Allies | -11 -10 -10 -10 -9 -8 -7 -7 -------- Run | Scr Mat Min Exi Min Mat Fac Sto Total Allies 1 | . . . . 1 . . . Largest Group 1 | . . . . 1 1 . . Highest-Rated Group 31 | . . . . 31 31 . . Highest-Rated Ally 31 | . . . . 31 31 . . Total Orders . | . . . . . . . . Ally Attacks 1 | . . . . . 1 . . Total Damage 22 | . . . . . 22 . . Kills 1 | . . . . . 1 . . Allies Corrupted . | . . . . . . . . Allies Melted . | . . . . . . . . Intel | -11 -10 -10 -10 -9 -8 -7 -7 ------- Run | Scr Mat Min Exi Min Mat Fac Sto Robot Analysis Total . | . . . . . . . . Derelict Logs Recovered 1 | . . 1 . . . . . Drone Launches . | . . . . . . . . Drone Recoveries . | . . . . . . . . Exploration | -11 -10 -10 -10 -9 -8 -7 -7 ------------- Run | Scr Mat Min Exi Min Mat Fac Sto Turns Passed 3577 | 58 59 106 1589 71 716 588 390 Spaces Moved 1662 | 46 43 79 724 29 292 310 139 Core 16 | 16 . . . . . . . Treads 22 | . . . . . 22 . . Legs 1365 | 30 43 79 724 29 152 169 139 Wheels 259 | . . . . . 118 141 . Hover . | . . . . . . . . Flight . | . . . . . . . . Fastest Speed 50 | 50 120 120 120 240 130 130 157 Average Speed 185 | 96 120 120 218 240 197 146 157 Slowest Speed 280 | 120 120 120 240 240 270 280 190 Overloaded Moves . | . . . . . . . . Propulsion Burnouts . | . . . . . . . . Robots Hopped . | . . . . . . . . Cave-ins Triggered . | . . . . . . . . Exploration Rate (%) 26 | 3 11 26 93 12 28 8 33 Regions Visited 7 Branch Regions 4 Pre-discovered Areas 2 | . . 1 1 . . . . Known Exits Taken . | . . . . . . . . Unknown Exits Taken 7 | 1 1 1 1 1 1 1 . Scrap Searched 1 | . . . . 1 . . . Spaces Dug . | . . . . . . . . Terrain Destroyed 54 | . . . . . 5 . 49 Melee . | . . . . . . . . Projectile 15 | . . . . . . . 15 AOE 39 | . . . . . 5 . 34 Terrain Rammed . | . . . . . . . . Walls Destroyed . | . . . . . . . . Machines Disabled . | . . . . . . . . Actions | -11 -10 -10 -10 -9 -8 -7 -7 --------- Run | Scr Mat Min Exi Min Mat Fac Sto Total 2003 | 56 50 90 735 31 416 398 227 Wait 136 | 4 . 8 . . 74 20 30 Move 1655 | 45 42 78 723 28 291 309 139 Hop . | . . . . . . . . Pick Up 51 | 1 3 2 9 3 15 13 5 Fast Attach 22 | 6 3 . 1 . 5 6 1 Attach 11 | . . . . . 4 2 5 Detach 6 | . 2 . . . 3 1 . Swap 17 | . . 1 . . 3 5 8 Drop 30 | . . 1 2 . 12 14 1 Fire 68 | . . . . . 9 22 37 Melee . | . . . . . . . . Ram . | . . . . . . . . Kick 2 | . . . . . . 1 1 Crush . | . . . . . . . . Escape Stasis 5 | . . . . . . 5 . Rewire . | . . . . . . . . Trap . | . . . . . . . . Miscellaneous . | . . . . . . . . Route ------- -11/Scrapyard -10/Materials -10/Mines (discovered 2 exits: [*Mat] / *Exi) -10/Exiles -9/Mines -8/Materials -7/Factory -7/Storage History --------- Turn | Location | Event 10 | -11/Scrapyard | Discovered new exit (range 14) 59 | -11/Scrapyard | Entered Materials 76 | -10/Materials | Discovered new exit (range 16) 100 | -10/Materials | Met 8R-AWN 118 | -10/Materials | Entered Mines 120 | -10/Mines | Followed 8R-AWN into the Mines 147 | -10/Mines | Met a Derelict bent on vengeance 186 | -10/Mines | Discovered new exit (range 12) 210 | -10/Mines | Learned location of Zion (-7) 219 | -10/Mines | Discovered new exit (range 5) 224 | -10/Mines | Entered Exiles 256 | -10/Exiles | Welcomed by 8R-AWN 276 | -10/Exiles | Met EX-HEX 312 | -10/Exiles | Build established: Mutant 322 | -10/Exiles | Met EX-DEC 475 | -10/Exiles | Discovered new exit (range 14) 671 | -10/Exiles | Build established: Hauler-Mutant 685 | -10/Exiles | Visited The Gauntlet 1108 | -10/Exiles | Learned about 8R-AWN's background 1168 | -10/Exiles | Met EX-BIN 1494 | -10/Exiles | Aligned with FarCom system 1496 | -10/Exiles | Given EX-Vault access code 1554 | -10/Exiles | Opened EX-Vault 1564 | -10/Exiles | Found Prototype Device 1574 | -10/Exiles | Found Prototype Energy Cannon 1623 | -10/Exiles | Warned to stay clear of 0b10 Research branches 1813 | -10/Exiles | Stole two prototypes: Cloak of Protection, Firepult 1813 | -10/Exiles | Entered Mines 1816 | -9/Mines | Received a Mining Laser from a helpful Derelict 1850 | -9/Mines | Discovered new exit (range 11) 1884 | -9/Mines | Entered Materials 1884 | -8/Materials | Accompanied by 1 ally 1884 | -8/Materials | Evolved 4 slots: Propulsion x1, Utility x2, Weapon x1 1885 | -8/Materials | Identified Cloak of Protection 2188 | -8/Materials | Build established: Hauler-Skirmisher 2451 | -8/Materials | Discovered new exit (range 19) 2600 | -8/Materials | Entered Factory 2600 | -7/Factory | Evolved 2 slots: Propulsion x1, Utility x1 2602 | -7/Factory | FarCom data flow suspended 2932 | -7/Factory | Build established: Hauler-Gunner 3100 | -7/Factory | Discovered new exit (range 14) 3188 | -7/Factory | Entered Storage 3342 | -7/Storage | Lost 5 parts (2n1u2w) 3452 | -7/Storage | Garrison activated, responded to threat 3578 | -7/Storage | Self-destructed Last Messages --------------- 03490_ Acquired 20 matter. 03494_ Acquired 37 matter. 03495_ R-06 Scavenger collects Adv. Heat Sink. 03497_ The unstable cave ceiling collapses. 03500_ U-05 Engineer lays Concrete. 03524_ ALERT: Hostiles spotted, dispatching reinforcements to Terminal S008. 03533_ Slug penetrates Wall. 03536_ Y-54 Guardian destroyed. 03539_ Slug penetrates Wall. 03540_ Acquired 57 matter. 03550_ Y-54 Guardian destroyed. 03555_ Critical hit. 03555_ Gauss Cannon destroyed. 03558_ Penetrated by Slug. 03560_ Y-54 Guardian destroyed. 03560_ Slug penetrates Wall. 03561_ Penetrated by Slug. 03567_ H-55 Commando knocked back. 03578_ Flak Gun destroyed. Map ----- +----------------------------------------------------+ | | | | | | | | | | | | | | | | | | | ????????????????????????????????????? | | ????????????????????????????????????? | | ????????????????????????????????????? | | ????????????????????????????????????? | | ???????????????????#????????????????? | | ??????????????????? ????????????????? | | ??????????????????? ???#######??????? | | ??????????????????? ???#"""""#??????? | | ??????????????????? ?###""T""###????? | | ??????????????????? ?# #????? | | ??????????????????? ?# ####?? | | ??????????????????# ## ! """#?? | | ??????????????????# ##]] R"??? | | ??????????????????# ##]] ""???? | | ?????????????????? ##]] #????? | | ??????????????????# # #????? | | ??????????????????# ## @[! #????? | | ??????????????????# #####%o#####????? | | ??????????????????# #???#!% ;???????? | | ??????????????????# #####ghg; ??????? | | ??????????????????+ ! # ?????? | | ??????????????????# # """???? | | ??????????????????# +?""" ??? | | ??????????????????# g #??"" ??? | | ??????????????###?# #???"???? | | ????########??# ###+## ## #???????? | | ????# [[ ### # #???????? | | ????+ [[ # # #???????? | | ????# [[ """" #g #???????? | | #### *[ "" + #???????? | | %[ [* """ #a #???????? | | ???##+## =# = ! " # #???????? | | ???????# # # #???????? | | ???????###### == # #???????? | | ????????????############# ######? # | | ??????????????? # # # | | ??????????????" """"" # # # | | ????????????#"Y """"" # # """ # | | ????????????#"" """"" # # """ # | | ??????????????# + + """ # | | ??????????????# # # # | +----------------------------------------------------+ Best States ------------- Heat Dissipation 53 Energy Generation 14 Energy Capacity 275 Matter Stores 300 Matter Capacity 300 Sight Range 16 Robot Scan Range 13 Terrain Scan Density 10 Cloak Strength 5 Armor Coverage 225 Resistance: KI 30 Weapon Shielding 33 Evasion (%) 50 Targeting Accuracy 5 Recoil Reduction 1 Item Schematics ----------------- None Robot Schematics ------------------ None Fabricated ------------ Nothing Alien Tech Used ----------------- None Achievements -------------- None Challenges ------------ None Game ------ Seed MakeshiftMicroLance Manual? 0 Play Time 00:59:31 Cumulative 41.7 hours Start 2020.09.15 @ 21:00:10 End 2020.09.15 @ 22:31:28 Sessions 1 Manual Loads 0 Difficulty Rogue Special Mode None Game No. 39 Rogue 39 Adventurer 0 Explorer 0 Win Type - Total 0 Types 0/0/0/0/0/0/0/0/0 Lore% 24 Gallery% 33 Achievement% 11 Wizard Run 0 Options --------- ASCII 1 Keyboard 1 Movement Numpad Keybinds 0 Fullscreen 0 Font 14/TerminusBold Map View 76x50 Tactical HUD 1 Map Filters NONE Filters NONE Steam 1 RUN: b19e219a-6077-4408-8ba4-e82bc83b98a1